fUST/lending_fUST_20240205
["ID","MTS","AMOUNT","RATE_DAILY","PERIOD"]
[313298052,1707112238947,-500.0,0.00024657,2]
[313298054,1707112238955,-500.0,0.00024657,2]
[313298056,1707112238965,-9241.98,0.00024657,2]
[313298058,1707112238974,-500.0,0.00024657,2]
[313298060,1707112238982,-1478.31,0.00024657,2]
[313298062,1707112238991,-1425.57,0.00024657,2]
[313298064,1707112239000,-34.61111443,0.00024657,2]
[313298337,1707112241884,-465.38888557,0.00024657,2]
[313298339,1707112241893,-860.76483983,0.00024657,2]
[313298515,1707112243777,-367.42896905,0.00024657,2]
[313298634,1707112246741,-83.40619112,0.00024657,2]
[313298635,1707112246752,-455.20831197,0.00024657,2]
[313298683,1707113431828,-5000.0,0.00021451,6]
[313298685,1707113431839,-416.37936591,0.00022557,2]
[313298687,1707113431850,-6889.0441508,0.00023074,2]
[313298689,1707113431860,-702.62131042,0.00023092,2]
[313298691,1707113431870,-418.23716853,0.00023092,2]
[313298694,1707113431883,-1362.0168393,0.00023092,2]
[313298861,1707114360248,1048.05633871,0.000201,6]
[313298917,1707114632094,-717.73938521,0.00020991,2]
[313298919,1707114632103,-277.58624394,0.00020992,2]
[313298921,1707114632113,-170.403287,0.00023074,2]
[313298923,1707114632122,-3219.74599217,0.00023092,2]
[313298925,1707114632131,-293.97707342,0.00023092,2]
[313298927,1707114632140,-573.85767411,0.00023092,2]
[313298930,1707114632151,-401.3332363,0.00023092,2]
[313298931,1707114632160,-1412.95064857,0.00023092,2]
[313298933,1707114632169,-380.06561837,0.00024655,2]
[313299035,1707115587103,5000.0,0.000201,6]
[313299036,1707115595715,5000.0,0.000201,6]
[313299062,1707115832219,-522.49468692,0.00020352,2]
[313299096,1707115838404,-195.24469829,0.00020352,2]
[313299097,1707115838413,-316.15413216,0.00020353,2]
[313299098,1707115838422,-185.05749596,0.00020992,2]
[313299099,1707115838431,-1308.8891825,0.00023091,2]
[313299100,1707115838440,-820.64626093,0.00024655,2]
[313299101,1707115838448,-4176.84141118,0.00024655,2]
[313299102,1707115838457,-155.19773386,0.00024655,2]
[313299103,1707115838466,-3215.17,0.00024657,2]
[313299104,1707115838475,-500.0,0.00024657,2]
[313299105,1707115838483,-1143.27,0.00024657,2]
[313299106,1707115838492,-720.36,0.00024657,2]
[313299107,1707115838501,-500.0,0.00024657,2]
[313299108,1707115838510,-513.19,0.00024657,2]
[313299109,1707115838519,-1351.62,0.00024657,2]
[313299110,1707115838529,-500.0,0.00024657,2]
[313299111,1707115838538,-500.0,0.00024657,2]
[313299112,1707115838548,-539.50561661,0.00024657,2]
[313299113,1707115838561,-517.42569895,0.00024657,2]
[313299114,1707115838570,-500.0,0.00024657,2]
[313299115,1707115838579,-500.0,0.00024657,2]
[313299116,1707115838588,-500.0,0.00024657,2]
[313299117,1707115838597,-500.0,0.00024657,2]
[313299118,1707115838606,-9050.07,0.00024657,2]
[313299119,1707115838615,-1256.95,0.00024657,2]
[313299120,1707115838624,-1416.71,0.00024657,2]
[313299121,1707115838633,-1366.17,0.00024657,2]
[313299122,1707115838642,-885.41,0.00024657,2]
[313299123,1707115838651,-500.0,0.00024657,2]
[313299124,1707115838660,-1518.79,0.00024657,2]
[313299125,1707115838669,-1634.34,0.00024657,2]
[313299126,1707115838677,-4000.77,0.00024657,2]
[313299127,1707115838686,-797.27,0.00024657,2]
[313299128,1707115838695,-646.65,0.00024657,2]
[313299129,1707115838704,-151.0,0.00024657,2]
[313299130,1707115838712,-151.0,0.00024657,2]
[313299131,1707115838721,-1020.46,0.00024657,2]
[313299132,1707115838731,-901.52,0.00024657,2]
[313299133,1707115838739,-500.0,0.00024657,2]
[313299134,1707115838748,-604.57,0.00024657,2]
[313299135,1707115838756,-500.0,0.00024657,2]
[313299136,1707115838765,-3346.43,0.00024657,2]
[313299137,1707115838774,-1221.28,0.00024657,2]
[313299138,1707115838783,-5236.26,0.00024657,2]
[313299139,1707115838792,-500.0,0.00024657,2]
[313299140,1707115838801,-2380.38,0.00024657,2]
[313299141,1707115838810,-783.38,0.00024657,2]
[313299142,1707115838818,-663.26,0.00024657,2]
[313299143,1707115838827,-199.8298339,0.000249,2]
[313299144,1707115838836,-153.0,0.000249,2]
[313299145,1707115838845,-199.8298339,0.000249,2]
[313299146,1707115838854,-153.0,0.000249,2]
[313299147,1707115838863,-199.8298339,0.000249,2]
[313299148,1707115838872,-153.0,0.000249,2]
[313299149,1707115838881,-153.0,0.000249,2]
[313299150,1707115838890,-199.8298339,0.000249,2]
[313299151,1707115838899,-153.0,0.000249,2]
[313299152,1707115838908,-199.2645838,0.000249,2]
[313299153,1707115838918,-153.0,0.000249,2]
[313299154,1707115839017,-312.5134984,0.000249,2]
[313299155,1707115839027,-168.1555127,0.000249,2]
[313299156,1707115839036,-500.0,0.000249,2]
[313299157,1707115839046,-150.027197,0.000249,2]
[313299158,1707115839055,-5530.56,0.00024911,3]
[313299159,1707115839065,-5421.21,0.00024911,3]
[313299160,1707115839074,-6505.45,0.00024921,3]
[313299161,1707115839083,-155.02015262,0.0002493,2]
[313299162,1707115839092,-3215.17,0.00024931,2]
[313299163,1707115839102,-500.0,0.00024931,2]
[313299164,1707115839112,-1143.27,0.00024931,2]
[313299165,1707115839121,-720.36,0.00024931,2]
[313299166,1707115839130,-500.0,0.00024931,2]
[313299167,1707115839139,-513.19,0.00024931,2]
[313299168,1707115839148,-1351.62,0.00024931,2]
[313299169,1707115839157,-229.13,0.00024931,2]
[313299170,1707115839166,-500.0,0.00024931,2]
[313299171,1707115839175,-9050.07,0.00024931,2]
[313299172,1707115839184,-1256.95,0.00024931,2]
[313299173,1707115839194,-1416.71,0.00024931,2]
[313299174,1707115839202,-1366.17,0.00024931,2]
[313299175,1707115839212,-885.41,0.00024931,2]
[313299176,1707115839221,-500.0,0.00024931,2]
[313299177,1707115839230,-1518.79,0.00024931,2]
[313299178,1707115839239,-1634.34,0.00024931,2]
[313299179,1707115839249,-4000.77,0.00024931,2]
[313299180,1707115839258,-797.27,0.00024931,2]
[313299181,1707115839267,-646.65,0.00024931,2]
[313299182,1707115839276,-1020.46,0.00024931,2]
[313299183,1707115839285,-901.52,0.00024931,2]
[313299184,1707115839294,-500.0,0.00024931,2]
[313299185,1707115839303,-604.57,0.00024931,2]
[313299186,1707115839312,-500.0,0.00024931,2]
[313299187,1707115839322,-3346.43,0.00024931,2]
[313299188,1707115839331,-1221.28,0.00024931,2]
[313299189,1707115839340,-5236.26,0.00024931,2]
[313299190,1707115839349,-500.0,0.00024931,2]
[313299191,1707115839358,-2380.38,0.00024931,2]
[313299192,1707115839366,-783.38,0.00024931,2]
[313299193,1707115839375,-663.26,0.00024931,2]
[313299194,1707115839384,-345.27360849,0.0002496,5]
[313299195,1707115839393,-1865.32745402,0.00025,3]
[313299196,1707115839402,-12086.94826288,0.00025,2]
[313299197,1707115839411,-643.75763596,0.00025,2]
[313299198,1707115839420,-27011.9,0.00025,2]
[313299199,1707115839430,-7159.66924906,0.00025,2]
[313299200,1707115839439,-4759.91149183,0.00025,2]
[313299201,1707115839449,-536.25817701,0.00025,2]
[313299202,1707115839458,-210.41691778,0.00025,2]
[313299203,1707115839467,-155.24633579,0.00025,2]
[313299204,1707115839475,-295.86642422,0.00025,2]
[313299205,1707115839485,-155.3837991,0.00025,2]
[313299206,1707115839494,-155.41882815,0.00025,2]
[313299207,1707115839503,-1745.35741296,0.00025,2]
[313299208,1707115839513,-2368.85087246,0.00025,2]
[313299209,1707115839522,-1004.98960131,0.00025,2]
[313299210,1707115839532,-252.8446631,0.00025,2]
[313299211,1707115839541,-153.0,0.00025,2]
[313299212,1707115839554,-153.0,0.00025,2]
[313299213,1707115839563,-356.7403246,0.00025136,2]
[313299214,1707115839573,-490.0,0.00025136,2]
[313299215,1707115839582,-160.43143061,0.00025155,2]
[313299216,1707115839591,-169.29217289,0.00025178,2]
[313299217,1707115839601,-306.6402862,0.0002518,2]
[313299218,1707115839610,-179.24287978,0.0002518,2]
[313299219,1707115839619,-299.28569422,0.0002518,2]
[313299220,1707115839629,-500.0,0.0002518,2]
[313299221,1707115839638,-500.0,0.0002518,2]
[313299222,1707115839649,-500.0,0.0002518,2]
[313299223,1707115839658,-500.0,0.0002518,2]
[313299224,1707115839667,-500.0,0.0002518,2]
[313299225,1707115839676,-500.0,0.0002518,2]
[313299226,1707115839685,-288.26781842,0.0002518,2]
[313299227,1707115839694,-500.0,0.0002518,2]
[313299228,1707115839703,-500.0,0.0002518,2]
[313299229,1707115839712,-500.0,0.0002518,2]
[313299230,1707115839721,-500.0,0.0002518,2]
[313299231,1707115839730,-500.0,0.0002518,2]
[313299232,1707115839739,-500.0,0.0002518,2]
[313299233,1707115839748,-500.0,0.0002518,2]
[313299234,1707115839757,-500.0,0.0002518,2]
[313299235,1707115839766,-500.0,0.0002518,2]
[313299236,1707115839775,-500.0,0.0002518,2]
[313299237,1707115839784,-500.0,0.0002518,2]
[313299238,1707115839793,-500.0,0.0002518,2]
[313299239,1707115839802,-500.0,0.0002518,2]
[313299240,1707115839811,-500.0,0.0002518,2]
[313299241,1707115839820,-500.0,0.0002518,2]
[313299242,1707115839829,-500.0,0.0002518,2]
[313299243,1707115839838,-500.0,0.0002518,2]
[313299244,1707115839847,-500.0,0.0002518,2]
[313299245,1707115839856,-500.0,0.0002518,2]
[313299246,1707115839865,-500.0,0.0002518,2]
[313299247,1707115839874,-500.0,0.0002518,2]
[313299248,1707115839883,-500.0,0.0002518,2]
[313299249,1707115839892,-500.0,0.0002518,2]
[313299250,1707115839901,-500.0,0.0002518,2]
[313299251,1707115839910,-500.0,0.0002518,2]
[313299252,1707115839919,-500.0,0.0002518,2]
[313299253,1707115839928,-500.0,0.0002518,2]
[313299254,1707115839937,-500.0,0.0002518,2]
[313299255,1707115839946,-500.0,0.0002518,2]
[313299256,1707115839955,-500.0,0.0002518,2]
[313299257,1707115839964,-500.0,0.0002518,2]
[313299258,1707115839974,-500.0,0.0002518,2]
[313299259,1707115839983,-500.0,0.0002518,2]
[313299260,1707115839992,-500.0,0.0002518,2]
[313299261,1707115840001,-500.0,0.0002518,2]
[313299262,1707115840010,-500.0,0.0002518,2]
[313299263,1707115840019,-500.0,0.0002518,2]
[313299264,1707115840029,-500.0,0.0002518,2]
[313299265,1707115840038,-500.0,0.0002518,2]
[313299266,1707115840048,-500.0,0.0002518,2]
[313299267,1707115840057,-500.0,0.0002518,2]
[313299268,1707115840066,-500.0,0.0002518,2]
[313299269,1707115840075,-499.45742273,0.0002518,2]
[313299270,1707115840084,-500.0,0.0002518,2]
[313299271,1707115840093,-500.0,0.0002518,2]
[313299272,1707115840102,-500.0,0.0002518,2]
[313299273,1707115840111,-1263.94359638,0.00025185,2]
[313299274,1707115840121,-3215.17,0.00025205,2]
[313299275,1707115840129,-500.0,0.00025205,2]
[313299276,1707115840138,-1143.27,0.00025205,2]
[313299277,1707115840148,-720.36,0.00025205,2]
[313299278,1707115840157,-500.0,0.00025205,2]
[313299279,1707115840166,-513.19,0.00025205,2]
[313299280,1707115840175,-1351.62,0.00025205,2]
[313299281,1707115840184,-500.0,0.00025205,2]
[313299282,1707115840193,-9050.07,0.00025205,2]
[313299283,1707115840202,-1256.95,0.00025205,2]
[313299284,1707115840211,-1416.71,0.00025205,2]
[313299285,1707115840220,-1366.17,0.00025205,2]
[313299286,1707115840229,-885.41,0.00025205,2]
[313299287,1707115840238,-1518.79,0.00025205,2]
[313299288,1707115840247,-500.0,0.00025205,2]
[313299289,1707115840257,-1634.34,0.00025205,2]
[313299290,1707115840266,-4000.77,0.00025205,2]
[313299291,1707115840276,-797.27,0.00025205,2]
[313299292,1707115840285,-646.65,0.00025205,2]
[313299293,1707115840294,-1020.46,0.00025205,2]
[313299294,1707115840302,-901.52,0.00025205,2]
[313299295,1707115840312,-500.0,0.00025205,2]
[313299296,1707115840321,-604.57,0.00025205,2]
[313299297,1707115840330,-500.0,0.00025205,2]
[313299298,1707115840338,-3346.43,0.00025205,2]
[313299299,1707115840347,-1221.28,0.00025205,2]
[313299300,1707115840356,-5236.26,0.00025205,2]
[313299301,1707115840365,-500.0,0.00025205,2]
[313299302,1707115840374,-2380.38,0.00025205,2]
[313299303,1707115840383,-783.38,0.00025205,2]
[313299304,1707115840392,-663.26,0.00025205,2]
[313299305,1707115840401,-1111.16821382,0.00025297,2]
[313299306,1707115840410,-3215.17,0.00025479,2]
[313299307,1707115840419,-500.0,0.00025479,2]
[313299308,1707115840428,-1143.27,0.00025479,2]
[313299309,1707115840437,-720.36,0.00025479,2]
[313299310,1707115840446,-500.0,0.00025479,2]
[313299311,1707115840455,-513.19,0.00025479,2]
[313299312,1707115840464,-1351.62,0.00025479,2]
[313299313,1707115840473,-500.0,0.00025479,2]
[313299315,1707115840483,-9050.07,0.00025479,2]
[313299316,1707115840491,-1256.95,0.00025479,2]
[313299317,1707115840500,-1416.71,0.00025479,2]
[313299318,1707115840509,-1366.17,0.00025479,2]
[313299319,1707115840518,-885.41,0.00025479,2]
[313299320,1707115840527,-1518.79,0.00025479,2]
[313299321,1707115840536,-500.0,0.00025479,2]
[313299322,1707115840545,-1634.34,0.00025479,2]
[313299323,1707115840556,-4000.77,0.00025479,2]
[313299324,1707115840566,-797.27,0.00025479,2]
[313299325,1707115840574,-646.65,0.00025479,2]
[313299326,1707115840583,-1020.46,0.00025479,2]
[313299327,1707115840592,-901.52,0.00025479,2]
[313299328,1707115840601,-500.0,0.00025479,2]
[313299329,1707115840610,-604.57,0.00025479,2]
[313299330,1707115840619,-500.0,0.00025479,2]
[313299331,1707115840629,-3346.43,0.00025479,2]
[313299332,1707115840638,-1221.28,0.00025479,2]
[313299333,1707115840646,-5236.26,0.00025479,2]
[313299335,1707115840656,-500.0,0.00025479,2]
[313299337,1707115840664,-2380.38,0.00025479,2]
[313299339,1707115840674,-783.38,0.00025479,2]
[313299341,1707115840682,-663.26,0.00025479,2]
[313299343,1707115840691,-176.3225468,0.00025479,2]
[313299345,1707115840700,-220.83615288,0.00025742,2]
[313299347,1707115840709,-3215.17,0.00025753,2]
[313299349,1707115840718,-500.0,0.00025753,2]
[313299351,1707115840727,-1143.27,0.00025753,2]
[313299353,1707115840735,-720.36,0.00025753,2]
[313299355,1707115840745,-500.0,0.00025753,2]
[313299357,1707115840753,-513.19,0.00025753,2]
[313299359,1707115840762,-1351.62,0.00025753,2]
[313299360,1707115840771,-500.0,0.00025753,2]
[313299362,1707115840779,-9050.07,0.00025753,2]
[313299364,1707115840788,-1256.95,0.00025753,2]
[313299366,1707115840797,-1416.71,0.00025753,2]
[313299369,1707115840807,-1366.17,0.00025753,2]
[313299371,1707115840815,-885.41,0.00025753,2]
[313299372,1707115840824,-1518.79,0.00025753,2]
[313299375,1707115840834,-500.0,0.00025753,2]
[313299377,1707115840842,-1634.34,0.00025753,2]
[313299378,1707115840852,-4000.77,0.00025753,2]
[313299380,1707115840861,-797.27,0.00025753,2]
[313299382,1707115840870,-646.65,0.00025753,2]
[313299384,1707115840879,-1020.46,0.00025753,2]
[313299387,1707115840889,-901.52,0.00025753,2]
[313299389,1707115840898,-500.0,0.00025753,2]
[313299391,1707115840909,-604.57,0.00025753,2]
[313299392,1707115840918,-500.0,0.00025753,2]
[313299393,1707115840927,-3346.43,0.00025753,2]
[313299394,1707115840936,-1221.28,0.00025753,2]
[313299395,1707115840945,-5236.26,0.00025753,2]
[313299396,1707115840954,-500.0,0.00025753,2]
[313299397,1707115840962,-2380.38,0.00025753,2]
[313299398,1707115840971,-783.38,0.00025753,2]
[313299399,1707115840980,-663.26,0.00025753,2]
[313299400,1707115840988,-500.0,0.000259,2]
[313299401,1707115840997,-185.05749596,0.00025992,2]
[313299402,1707115841006,-3215.17,0.00026027,2]
[313299403,1707115841015,-500.0,0.00026027,2]
[313299404,1707115841025,-1143.27,0.00026027,2]
[313299405,1707115841034,-720.36,0.00026027,2]
[313299406,1707115841042,-500.0,0.00026027,2]
[313299407,1707115841051,-513.19,0.00026027,2]
[313299408,1707115841060,-1351.62,0.00026027,2]
[313299409,1707115841070,-500.0,0.00026027,2]
[313299410,1707115841078,-9050.07,0.00026027,2]
[313299411,1707115841088,-1256.95,0.00026027,2]
[313299412,1707115841098,-1416.71,0.00026027,2]
[313299413,1707115841107,-1366.17,0.00026027,2]
[313299414,1707115841116,-885.41,0.00026027,2]
[313299415,1707115841125,-1518.79,0.00026027,2]
[313299416,1707115841134,-500.0,0.00026027,2]
[313299417,1707115841144,-1634.34,0.00026027,2]
[313299418,1707115841153,-4000.77,0.00026027,2]
[313299419,1707115841162,-797.27,0.00026027,2]
[313299420,1707115841171,-646.65,0.00026027,2]
[313299421,1707115841260,-1020.46,0.00026027,2]
[313299422,1707115841270,-901.52,0.00026027,2]
[313299423,1707115841280,-500.0,0.00026027,2]
[313299424,1707115841290,-604.57,0.00026027,2]
[313299425,1707115841299,-500.0,0.00026027,2]
[313299426,1707115841309,-3346.43,0.00026027,2]
[313299427,1707115841319,-1221.28,0.00026027,2]
[313299428,1707115841329,-5236.26,0.00026027,2]
[313299429,1707115841338,-500.0,0.00026027,2]
[313299431,1707115841348,-2380.38,0.00026027,2]
[313299432,1707115841357,-783.38,0.00026027,2]
[313299434,1707115841367,-663.26,0.00026027,2]
[313299436,1707115841376,-155.02790502,0.000261,2]
[313299437,1707115841386,-151.0,0.0002625,2]
[313299438,1707115841395,-3215.17,0.00026301,2]
[313299440,1707115841404,-500.0,0.00026301,2]
[313299441,1707115841413,-1143.27,0.00026301,2]
[313299443,1707115841423,-720.36,0.00026301,2]
[313299444,1707115841432,-500.0,0.00026301,2]
[313299445,1707115841441,-513.19,0.00026301,2]
[313299446,1707115841451,-1351.62,0.00026301,2]
[313299447,1707115841459,-500.0,0.00026301,2]
[313299448,1707115841469,-9050.07,0.00026301,2]
[313299449,1707115841479,-1256.95,0.00026301,2]
[313299450,1707115841488,-1416.71,0.00026301,2]
[313299451,1707115841498,-1366.17,0.00026301,2]
[313299452,1707115841508,-885.41,0.00026301,2]
[313299453,1707115841517,-1518.79,0.00026301,2]
[313299454,1707115841525,-500.0,0.00026301,2]
[313299455,1707115841535,-1634.34,0.00026301,2]
[313299456,1707115841545,-4000.77,0.00026301,2]
[313299457,1707115841558,-797.27,0.00026301,2]
[313299458,1707115841567,-646.65,0.00026301,2]
[313299459,1707115841576,-1020.46,0.00026301,2]
[313299460,1707115841586,-901.52,0.00026301,2]
[313299461,1707115841597,-500.0,0.00026301,2]
[313299462,1707115841606,-604.57,0.00026301,2]
[313299463,1707115841615,-500.0,0.00026301,2]
[313299464,1707115841624,-3346.43,0.00026301,2]
[313299465,1707115841634,-1221.28,0.00026301,2]
[313299466,1707115841644,-5236.26,0.00026301,2]
[313299467,1707115841653,-2380.38,0.00026301,2]
[313299468,1707115841663,-663.26,0.00026301,2]
[313299469,1707115841671,-783.38,0.00026301,2]
[313299470,1707115841680,-500.0,0.000264,2]
[313299471,1707115841690,-187.41368701,0.00026499,2]
[313299472,1707115841699,-154.23982849,0.000265,2]
[313299473,1707115841708,-155.70744892,0.00026575,2]
[313299474,1707115841718,-156.4351834,0.00026575,2]
[313299475,1707115841727,-3215.17,0.00026575,2]
[313299476,1707115841736,-500.0,0.00026575,2]
[313299477,1707115841745,-1143.27,0.00026575,2]
[313299478,1707115841754,-720.36,0.00026575,2]
[313299479,1707115841763,-500.0,0.00026575,2]
[313299480,1707115841772,-513.19,0.00026575,2]
[313299481,1707115841781,-1351.62,0.00026575,2]
[313299482,1707115841791,-500.0,0.00026575,2]
[313299483,1707115841800,-8195.91012765,0.00026575,2]
[313299484,1707115841816,-854.15987235,0.00026575,2]
[313299485,1707115841825,-1256.95,0.00026575,2]
[313299486,1707115841834,-1416.71,0.00026575,2]
[313299487,1707115841844,-326.56896276,0.00026575,2]
[313299488,1707115841855,-1039.60103724,0.00026575,2]
[313299489,1707115841865,-117.04218456,0.00026575,2]
[313299545,1707115846334,-762.18,0.00024657,2]
[313299546,1707115846344,-762.18,0.00024931,2]
[313299547,1707115846352,-5000.0,0.00026309,6]
[313299548,1707115846361,-768.36781544,0.00026575,2]
[313299549,1707115846370,-1518.79,0.00026575,2]
[313299550,1707115846379,-500.0,0.00026575,2]
[313299551,1707115846388,-1634.34,0.00026575,2]
[313299552,1707115846397,-2561.63487353,0.00026575,2]
[313299553,1707115865104,1069.0,0.00029,30]
[313299687,1707117041717,-717.73938521,0.0002239,2]
[313299688,1707117041727,-316.15413216,0.00022391,2]
[313299689,1707117041736,-5000.0,0.00022393,6]
[313299690,1707117041745,-848.82116574,0.00023091,2]
[313299691,1707117041754,-318.62413068,0.00024657,2]
[313299692,1707117041763,-500.0,0.00024657,2]
[313299693,1707117041772,-500.0,0.00024657,2]
[313299694,1707117041781,-411.26118621,0.00024657,2]
[313299724,1707117043444,-329.06881379,0.00024657,2]
[313299725,1707117043453,-237.3521861,0.00024929,2]
[313299726,1707117043501,-990.66859771,0.00024929,2]
[313299727,1707117043512,-1521.14921619,0.00024929,2]
[313299728,1707117043522,-500.0,0.00024929,2]
[313299729,1707117043531,-1686.1,0.00024929,2]
[313299730,1707117043540,-1389.74570649,0.00024929,2]
[313299731,1707117043551,-518.61,0.00024929,2]
[313299732,1707117043562,-1510.26,0.00024929,2]
[313299733,1707117043575,-861.211647,0.00024929,2]
[313299734,1707117043586,-1335.69975529,0.00024929,2]
[313299776,1707118234987,-717.73938521,0.00020693,2]
[313299777,1707118234996,-316.15413216,0.00020694,2]
[313299778,1707118235005,-1868.22615769,0.00020695,6]
[313299779,1707118235013,-293.96652096,0.00022,4]
[313299780,1707118235022,-644.1237322,0.00022829,2]
[313299781,1707118235031,-272.234641,0.00023047,2]
[313299782,1707118235040,-248.02012435,0.00023095,2]
[313299855,1707118238761,-187.08768869,0.00023095,2]
[313299857,1707118238771,-233.96068209,0.00023095,2]
[313299858,1707118238780,-6687.89533673,0.00024677,2]
[313299915,1707118241817,-469.45799078,0.00024677,2]
[313299939,1707118246760,-1860.78200154,0.00024677,2]
[313299940,1707118246769,-410.15625,0.00024858,2]
[313299941,1707118246778,-500.0,0.00024958,2]
[313299942,1707118246787,-901.08,0.00024958,2]
[313299943,1707118246796,-453.92304328,0.00024958,2]
[313299944,1707118246806,-500.0,0.00024958,2]
[313299945,1707118246815,-500.0,0.00024958,2]
[313299946,1707118246824,-4788.85117201,0.00024958,2]
[313299947,1707118602877,156.56906536,0.00029,30]
[313300005,1707119431821,-717.73938521,0.00020458,2]
[313300007,1707119431830,-500.0,0.00020459,2]
[313300009,1707119431839,-316.15413216,0.0002046,2]
[313300011,1707119431848,-162.45683322,0.0002048,2]
[313300056,1707119438788,-139.19219709,0.0002048,2]
[313300057,1707119438797,-1784.88407339,0.00021139,2]
[313300058,1707119438906,-4275.20312541,0.00021139,2]
[313300059,1707119438915,-7419.4468281,0.0002125,2]
[313300060,1707119438925,-166.666666,0.00021918,2]
[313300061,1707119439033,-170.124174,0.00021939,2]
[313300062,1707119439043,-662.39098155,0.00022858,2]
[313300063,1707119439052,-464.9336474,0.00022994,2]
[313300064,1707119439061,-717.7734375,0.00022995,2]
[313300065,1707119439071,-5000.0,0.00023095,2]
[313300066,1707119439080,-21471.83056945,0.00023095,2]
[313300067,1707119439090,-4134.74518503,0.00023095,2]
[313300068,1707119439099,-9920.86883825,0.00023095,2]
[313300069,1707119439108,-166.666666,0.000232,2]
[313300070,1707119439117,-166.666666,0.00024482,2]
[313300071,1707119439126,-5538.36,0.00024637,3]
[313300072,1707119439135,-4615.3,0.00024637,3]
[313300073,1707119439144,-7975.23,0.00024647,3]
[313300074,1707119439153,-6646.03,0.00024647,3]
[313300075,1707119439162,-525.89667385,0.00024657,2]
[313300076,1707119439172,-500.0,0.00024657,2]
[313300077,1707119439182,-500.0,0.00024657,2]
[313300078,1707119439191,-303.39,0.00024657,2]
[313300079,1707119439200,-564.80781481,0.00024657,2]
[313300080,1707119439209,-502.09785927,0.00024657,2]
[313300081,1707119439218,-500.0,0.00024657,2]
[313300082,1707119439227,-1110.39,0.00024657,2]
[313300083,1707119439237,-2668.34,0.00024657,2]
[313300084,1707119439245,-500.0,0.00024657,2]
[313300085,1707119439254,-659.41,0.00024657,2]
[313300086,1707119439263,-536.93009689,0.00024657,2]
[313300087,1707119439272,-500.0,0.00024657,2]
[313300088,1707119439282,-500.0,0.00024657,2]
[313300089,1707119439291,-500.0,0.00024657,2]
[313300090,1707119439300,-906.74,0.00024657,2]
[313300091,1707119439308,-500.0,0.00024657,2]
[313300092,1707119439317,-500.0,0.00024657,2]
[313300093,1707119439326,-1637.77,0.00024657,2]
[313300094,1707119439334,-500.0,0.00024657,2]
[313300095,1707119439343,-5713.6,0.00024657,2]
[313300096,1707119439352,-521.97502219,0.00024706,2]
[313300097,1707119439361,-510.83327595,0.00024706,2]
[313300098,1707119439370,-500.0,0.00024706,2]
[313300099,1707119439379,-863.54,0.00024706,2]
[313300100,1707119439388,-500.0,0.00024706,2]
[313300101,1707119439397,-513.63248677,0.00024706,2]
[313300102,1707119439406,-965.31,0.00024706,2]
[313300103,1707119439415,-934.02,0.00024706,2]
[313300104,1707119439424,-858.8,0.00024706,2]
[313300105,1707119439434,-590.28,0.00024706,2]
[313300106,1707119439443,-1112.37,0.00024706,2]
[313300107,1707119439452,-564.73,0.00024706,2]
[313300108,1707119439462,-753.42,0.00024706,2]
[313300109,1707119439471,-2529.55,0.00024706,2]
[313300110,1707119439481,-500.0,0.00024706,2]
[313300111,1707119439490,-1111.31376079,0.00024706,2]
[313300149,1707119449416,-316.15413216,0.00024655,2]
[313300150,1707119449426,-34.83075793,0.00024656,2]